bitfinex/quotes_SOLUSD_20260306
["timestamp","ask_amount","ask_price","bid_price","bid_amount"]
[1772827938747,0.52042877,85.095,85.062,0.47491725]
[1772827939347,0.52042877,85.069,85.043,7.5552668]
[1772827939753,10.83307991,85.08,85.045,0.47491725]
[1772827939754,0.52042877,85.079,85.045,0.47491725]
[1772827940953,0.52042877,85.077,85.043,7.5552668]
[1772827941254,0.52042877,85.059,85.043,7.5552668]
[1772827941457,0.52042877,85.059,85.031,11.76033254]
[1772827941958,0.52042877,85.059,85.03,0.57491725]
[1772827942334,0.52042877,85.059,85.032,11.76018857]
[1772827942743,0.52042877,85.059,85.03,0.57491725]
[1772827942943,0.52042877,85.057,85.031,11.76029615]
[1772827945356,0.52042877,85.055,85.031,11.76029615]
[1772827946063,0.52042877,85.062,85.036,0.47491725]
[1772827946657,0.52042877,85.062,85.031,11.76029615]
[1772827946866,0.52042877,85.062,85.03,0.1]
[1772827946867,0.52042877,85.059,85.03,0.1]
[1772827947345,0.52042877,85.057,85.03,0.1]
[1772827947668,0.52042877,85.049,85.013,0.47491725]
[1772827948259,0.52042877,85.057,85.013,0.47491725]
[1772827948448,11.75668367,85.058,85.013,0.47491725]
[1772827948758,11.75668367,85.058,85.013,0.28432314]
[1772827948952,11.75668367,85.058,85.016,0.47491725]
[1772827949151,0.52042877,85.063,85.022,0.47491725]
[1772827949960,0.52042877,85.088,85.032,0.14216157]
[1772827950163,0.52042877,85.088,85.041,0.47491725]
[1772827951658,0.52042877,85.088,85.05,0.14216157]
[1772827951861,12.2730114,85.088,85.053,0.48699114]
[1772827952363,0.47490549,85.087,85.053,0.48699114]
[1772827953158,0.47490549,85.079,85.047,11.75814079]
[1772827953941,0.47490549,85.077,85.041,0.48699114]
[1772827956758,0.47490549,85.077,85.043,0.48699114]
[1772827956956,11.75419624,85.076,85.043,0.48699114]
[1772827957680,12.22910173,85.076,85.043,0.48699114]
[1772827957850,11.75447257,85.074,85.044,11.75861906]
[1772827958051,0.47490549,85.073,85.045,0.48699114]
[1772827958864,0.47490549,85.073,85.04,11.75909229]
[1772827959065,0.47490549,85.069,85.04,11.75909229]
[1772827959865,0.47490549,85.067,85.025,0.48699114]
[1772827960171,0.47490549,85.067,85.03,0.48699114]
[1772827961573,0.47490549,85.079,85.03,0.48699114]
[1772827961974,0.47490549,85.077,85.032,0.48699114]
[1772827964074,0.47490549,85.075,85.034,0.48699114]
[1772827964454,0.47490549,85.075,85.01,0.48699114]
[1772827964455,0.47490549,85.073,85.01,0.48699114]
[1772827964652,0.14216157,85.074,85.013,0.48699114]
[1772827964653,0.47490549,85.059,85.013,0.48699114]
[1772827965855,0.47490549,85.059,85.014,0.62915271]
[1772827966058,0.47490549,85.057,85.021,0.48699114]
[1772827967165,0.47490549,85.057,85.005,0.28432314]
[1772827967166,11.75391993,85.078,85.03,0.48699114]
[1772827967364,11.75391993,85.078,85.032,0.48699114]
[1772827967671,0.47490549,85.077,85.032,0.48699114]
[1772827968065,11.75419624,85.076,85.033,41.16049063]
[1772827968264,0.47490549,85.075,85.034,0.48699114]
[1772827969375,11.75359403,85.081,85.036,0.48699114]
[1772827969671,0.47490549,85.08,85.042,0.48699114]
[1772827969855,0.47490549,85.079,85.034,0.48699114]
[1772827970377,0.47490549,85.069,85.029,11.76061425]
[1772827971261,0.47490549,85.059,85.022,11.76161226]
[1772827971980,0.47490549,85.059,85.023,0.48699114]
[1772827972763,0.47490549,85.057,85.024,11.76138502]
[1772827973473,0.47490549,85.057,85.024,12.24837616]
[1772827973778,0.47490549,85.057,85.025,0.48699114]
[1772827974877,29.38997779,85.064,85.026,11.76110836]
[1772827974878,11.75696012,85.056,85.026,11.76110836]
[1772827975179,0.47490549,85.055,85.026,11.76110836]
[1772827975364,0.47490549,85.055,85.027,0.48699114]
[1772827977282,0.47772488,85.053,85.028,11.76083172]
[1772827978383,0.47772488,85.051,85.022,0.4771093]
[1772827980392,0.47772488,85.049,85.008,11.76359872]
[1772827980865,0.47772488,85.049,85.009,0.4771093]
[1772827982386,11.75806603,85.048,85.01,11.76332196]
[1772827982582,11.75806603,85.048,85.012,0.50146069]
[1772827982969,11.75703787,85.056,85.012,0.50146069]
[1772827983667,0.51047012,85.055,85.012,0.50146069]
[1772827984781,0.51047012,85.053,85.014,0.50146069]
[1772827986781,0.51047012,85.051,85.016,0.50146069]
[1772827987592,0.51047012,85.049,85.004,0.50146069]
[1772827990299,0.51047012,85.047,85.006,0.50146069]
[1772827992484,0.51047012,85.045,85.008,0.50146069]
[1772827995302,0.51047012,85.043,85.01,0.50146069]
[1772827996697,0.51047012,85.058,85.012,0.50146069]
[1772827996881,11.75599261,85.063,85.012,0.50146069]
[1772827997083,11.75531553,85.068,85.022,0.50146069]
[1772827997307,11.75531553,85.068,85.028,0.14216157]
[1772827997475,11.75531553,85.068,85.024,0.42648471]
[1772827997476,11.75531553,85.068,85.031,0.50146069]
[1772827998176,0.51047012,85.067,85.031,0.50146069]
[1772828001205,0.51047012,85.065,85.017,0.14216157]
[1772828001404,0.51047012,85.059,85.02,0.50146069]
[1772828002605,0.51047012,85.049,85.02,0.50146069]
[1772828003337,0.51047012,85.047,85.021,11.76180002]
[1772828005814,0.51047012,85.047,85.022,0.50146069]
[1772828006317,0.51047012,85.045,85.022,0.50146069]
[1772828007703,58.76996537,85.078,85.022,0.50146069]
[1772828007704,0.51047012,85.075,85.024,0.50146069]
[1772828008011,0.51047012,85.073,85.028,0.50146069]
[1772828008207,0.51047012,85.073,85.032,0.50146069]
[1772828010510,0.51047012,85.071,85.033,11.76014018]
[1772828011010,0.51047012,85.071,85.033,41.16049063]
[1772828011399,0.51047012,85.071,85.034,0.50146069]
[1772828012715,0.51418519,85.069,85.035,11.75986358]
[1772828014715,0.51418519,85.059,85.02,0.49348396]
[1772828015711,0.51418519,85.057,85.021,12.25528398]
[1772828016813,0.51418519,85.063,85.022,0.49348396]
[1772828017003,0.51418519,85.079,85.022,0.49348396]
[1772828017409,0.51418519,85.079,85.023,0.14216157]
[1772828017610,0.51418519,85.079,85.029,0.14216157]
[1772828017810,0.51418519,85.077,85.034,0.49348396]
[1772828019209,0.51418519,85.077,85.039,0.14216157]
[1772828019418,0.51418519,85.077,85.042,0.49348396]
[1772828022025,0.51418519,85.077,85.044,0.49348396]
[1772828023104,11.75419624,85.076,85.044,0.49348396]
[1772828023427,12.26838143,85.076,85.044,0.49348396]
[1772828024718,0.51418519,85.098,85.05,0.49348396]
[1772828025029,0.51418519,85.098,85.052,0.49348396]
[1772828025211,0.51418519,85.089,85.052,0.49348396]
[1772828026733,0.51418519,85.087,85.053,11.75737481]
[1772828028626,0.51418519,85.087,85.052,0.49348396]
[1772828028810,0.51418519,85.085,85.047,11.75812979]
[1772828029820,0.51418519,85.083,85.047,11.75812979]
[1772828030022,0.51418519,85.083,85.048,0.49348396]
[1772828030846,0.51418519,85.083,85.05,0.49348396]
[1772828031018,0.51418519,85.083,85.052,0.49348396]
[1772828032040,0.51418519,85.089,85.054,0.49348396]
[1772828034432,0.51418519,85.087,85.056,0.49348396]
[1772828035531,0.51418519,85.085,85.057,11.75682189]
[1772828036246,0.51418519,85.085,85.058,0.49567523]
[1772828037540,11.75230153,85.09,85.06,0.49567523]
[1772828038123,12.28183762,85.09,85.06,0.49567523]
[1772828038321,0.52953609,85.097,85.062,0.49567523]
[1772828039745,0.52953609,85.095,85.064,0.49567523]
[1772828040536,11.75081662,85.101,85.064,0.49567523]
[1772828040741,12.28035271,85.101,85.064,0.49567523]
[1772828040938,0.52953609,85.116,85.066,0.49567523]
[1772828041140,0.52953609,85.116,85.064,0.28432314]
[1772828041141,0.52953609,85.115,85.077,0.14216157]
[1772828041347,0.52953609,85.115,85.082,0.49567523]
[1772828041519,11.7486724,85.116,85.082,0.49567523]
[1772828041845,0.5055301,85.122,85.084,0.49563435]
[1772828042641,0.5055301,85.119,85.076,0.49563435]
[1772828042844,0.5055301,85.109,85.074,11.75447257]
[1772828043345,0.5055301,85.109,85.074,12.25010692]
[1772828043542,0.5055301,85.109,85.075,0.49563435]
[1772828043945,29.36500538,85.136,85.075,0.49563435]
[1772828043946,0.5055301,85.107,85.076,11.75419624]
[1772828044542,0.5055301,85.107,85.066,0.49563435]
[1772828044751,0.5055301,85.099,85.061,0.49563435]
[1772828046035,0.5055301,85.099,85.06,0.14216157]
[1772828046036,0.5055301,85.097,85.063,0.49563435]
[1772828049348,0.5055301,85.095,85.065,0.49563435]
[1772828050351,0.5055301,85.095,85.064,11.75585441]
[1772828050554,0.5055301,85.095,85.065,0.49563435]
[1772828051464,0.5055301,85.093,85.066,11.75557802]
[1772828051641,0.5055301,85.093,85.067,0.49563435]
[1772828052143,0.5055301,85.093,85.066,11.75557802]
[1772828052345,0.5055301,85.089,85.052,0.49563435]
[1772828052550,0.5055301,85.089,85.045,0.49563435]
[1772828052936,0.5055301,85.089,85.048,0.49563435]
[1772828053137,0.5055301,85.089,85.052,0.49563435]
[1772828053538,12.25378842,85.119,85.055,0.49563435]
[1772828053839,0.5055301,85.114,85.07,0.14216157]
[1772828054040,0.5055301,85.114,85.071,0.49563435]
[1772828055252,0.5055301,85.114,85.065,0.49563435]
[1772828055451,0.5055301,85.109,85.065,0.49563435]
[1772828055958,4.34382946,85.1,85.065,12.25134087]
[1772828056150,0.5055301,85.099,85.055,0.49563435]
[1772828056351,0.5055301,85.099,85.056,0.49563435]
[1772828059462,0.5055301,85.097,85.058,0.49563435]
[1772828060553,0.5055301,85.089,85.048,0.49563435]
[1772828060766,0.5055301,85.089,85.042,0.49563435]
[1772828061869,0.5055301,85.079,85.043,11.75875733]
[1772828062164,0.5055301,85.079,85.043,12.25439168]
[1772828062767,0.5055301,85.069,85.033,0.49563435]
[1772828062966,0.5055301,85.069,85.022,0.49563435]
[1772828063169,0.5055301,85.059,85.022,0.49563435]
[1772828063394,0.5055301,85.049,85.016,0.49563435]
[1772828063866,0.5055301,85.048,85.018,0.49563435]
[1772828067666,0.5055301,85.048,85.02,0.49563435]
[1772828067851,12.26367276,85.048,85.02,0.49563435]
[1772828068051,0.5055301,85.048,85.02,0.49563435]
[1772828068662,0.5055301,85.083,85.022,0.49563435]
[1772828068953,0.5055301,85.083,85.032,0.49563435]
[1772828069674,0.5055301,85.083,85.038,0.49563435]
[1772828069969,0.5055301,85.081,85.051,0.14216157]
[1772828070173,0.5055301,85.081,85.051,0.63779592]
[1772828071475,0.5055301,85.081,85.052,0.49563435]
[1772828071855,0.5055301,85.081,85.054,0.48078293]
[1772828073762,0.48822299,85.088,85.056,0.48078293]
[1772828073968,7.26476362,85.094,85.058,0.48078293]
[1772828074167,7.26476362,85.094,85.062,0.48078293]
[1772828074168,11.75184797,85.093,85.062,0.48078293]
[1772828074363,0.48822299,85.092,85.055,41.14984421]
[1772828074568,0.48822299,85.092,85.06,0.48078293]
[1772828074772,0.48822299,85.092,85.061,0.48078293]
[1772828076482,11.75212419,85.091,85.062,11.75613082]
[1772828076689,0.48822299,85.09,85.062,12.23691375]
[1772828076873,0.48822299,85.09,85.063,0.48078293]
[1772828078367,0.48822299,85.093,85.066,0.14216157]
[1772828078574,0.48822299,85.093,85.068,0.90726764]
[1772828078873,0.48822299,85.091,85.068,0.48078293]
[1772828080593,7.26476362,85.094,85.063,0.48078293]
[1772828080594,0.48822299,85.089,85.063,0.48078293]
[1772828081791,0.48822299,85.089,85.044,29.39645716]
[1772828081993,0.48822299,85.089,85.051,0.48078293]
[1772828083295,0.48822299,85.089,85.046,0.14216157]
[1772828083296,0.48822299,85.087,85.053,0.48078293]
[1772828085379,0.48822299,85.093,85.057,0.48078293]
[1772828088002,0.48822299,85.091,85.059,0.48078293]
[1772828088893,0.48822299,85.091,85.052,0.48078293]
[1772828090074,0.48822299,85.089,85.054,0.48078293]
[1772828092481,0.48822299,85.087,85.056,0.48078293]
[1772828094601,0.48822299,85.085,85.057,11.75682189]
[1772828095196,0.48822299,85.085,85.057,12.23760482]
[1772828095499,0.48822299,85.085,85.058,0.48078293]
[1772828098481,29.37996521,85.092,85.059,12.28090403]
[1772828098482,0.50640811,85.083,85.059,12.28090403]
[1772828100101,0.50640811,85.083,85.059,11.75654545]
[1772828100303,0.50640811,85.083,85.055,11.75709422]
[1772828100501,0.50640811,85.081,85.057,12.28118047]
[1772828100801,0.50640811,85.119,85.06,0.52435858]
[1772828101005,0.50640811,85.117,85.057,12.28118047]
[1772828101185,0.50640811,85.113,85.058,0.52435858]
[1772828102095,0.50529507,85.107,85.033,0.48994396]
[1772828102291,0.50529507,85.103,85.041,0.48994396]
[1772828102499,0.50529507,85.101,85.045,0.48994396]
[1772828102807,0.50529507,85.101,85.048,0.14216157]
[1772828103005,0.50529507,85.101,85.051,0.48994396]
[1772828104499,0.50529507,85.099,85.054,0.48994396]
[1772828104708,0.50529507,85.099,85.062,0.48994396]
[1772828105213,0.50529507,85.099,85.056,0.48994396]
[1772828105508,0.50529507,85.099,85.047,0.48994396]
[1772828105910,0.50529507,85.099,85.041,11.75903387]
[1772828106213,0.50529507,85.099,85.042,0.48994396]
[1772828107008,0.50529507,85.096,85.035,0.48994396]
[1772828107207,0.50529507,85.096,85.027,0.48994396]
[1772828107409,0.50529507,85.092,85.032,0.48994396]
[1772828107804,0.14216157,85.083,85.025,0.48994396]
[1772828108010,0.50529507,85.082,85.025,0.48994396]
[1772828109811,0.50529507,85.08,85.027,0.48994396]
[1772828111921,0.50529507,85.078,85.023,0.48994396]
[1772828112310,0.50529507,85.076,85.009,0.48994396]
[1772828112510,0.50529507,85.072,85.009,0.48994396]
[1772828112722,0.50529507,85.072,85.011,0.48994396]
[1772828113929,0.50529507,85.07,85.013,0.48994396]
[1772828116133,0.50529507,85.068,85.015,0.48994396]
[1772828117041,0.50529507,85.068,85.017,0.48994396]
[1772828117240,0.27782751,85.068,85.025,0.48994396]
[1772828117413,11.75391993,85.078,85.036,0.14216157]
[1772828117614,41.13871976,85.078,85.041,0.48994396]
[1772828118129,41.13436835,85.087,85.043,0.48994396]
[1772828119433,0.50529507,85.086,85.043,0.48994396]
[1772828121132,0.50529507,85.084,85.045,0.48994396]
[1772828121540,11.75157055,85.096,85.05,0.14216157]
[1772828121715,11.75124704,85.098,85.059,0.48994396]
[1772828122028,11.75124704,85.098,85.061,0.48994396]
[1772828122335,0.50529507,85.09,85.061,0.48994396]
[1772828122543,12.25791434,85.088,85.061,0.48994396]
[1772828122754,0.50529507,85.087,85.061,0.48994396]
[1772828123047,11.75218189,85.091,85.061,0.48994396]
[1772828123247,11.75218189,85.091,85.063,0.48994396]
[1772828123919,11.75161396,85.095,85.063,0.48994396]
[1772828124135,0.50529507,85.094,85.063,0.48994396]
[1772828124341,0.50529507,85.094,85.057,0.48994396]
[1772828124646,0.50529507,85.094,85.042,0.48994396]
[1772828124815,0.50529507,85.094,85.043,0.48994396]
[1772828125241,0.50529507,85.092,85.045,0.48994396]
[1772828126928,0.50529507,85.089,85.034,11.75994118]
[1772828127328,0.14216157,85.084,85.034,0.48994396]
[1772828127630,0.50529507,85.083,85.034,0.48994396]
[1772828129237,0.50529507,85.081,85.036,0.48994396]
[1772828131241,41.13775269,85.08,85.037,11.759587]
[1772828131413,0.50529507,85.079,85.038,0.48994396]
[1772828133136,0.50529507,85.079,85.023,0.4923349]
[1772828133542,0.5107553,85.077,85.025,0.4923349]
[1772828133834,0.14216157,85.074,85.025,0.4923349]
[1772828134019,0.5107553,85.073,85.025,0.4923349]
[1772828136440,41.1416212,85.072,85.026,11.76110836]
[1772828136636,0.5107553,85.071,85.027,0.4923349]
[1772828137344,0.5107553,85.069,85.003,0.4923349]
[1772828137523,0.5107553,85.063,85.004,0.4923349]
[1772828138229,0.14216157,85.062,85.003,11.76429067]
[1772828138431,0.14216157,85.062,84.997,0.4923349]
[1772828138432,41.15129567,85.052,84.998,11.7649827]
[1772828138646,0.5107553,85.051,85.0,0.5923349]
[1772828139044,0.5107553,85.049,85.0,0.1]
[1772828139247,0.14216157,85.046,85.0,0.1]
[1772828139542,0.5107553,85.043,85.0,0.1]
[1772828140849,0.5107553,85.041,85.0,0.1]
[1772828141143,0.5107553,85.041,84.973,11.69641966]
[1772828141144,0.5107553,85.038,84.973,7.57610093]
[1772828141334,194.02177745,85.042,84.983,0.4923349]
[1772828141335,0.5107553,85.036,84.983,0.4923349]
[1772828141725,0.5107553,85.036,84.984,0.4923349]
[1772828141923,0.5107553,85.036,84.982,11.76719775]
[1772828142122,0.5107553,85.034,84.982,11.76719775]
[1772828142438,0.5107553,85.032,84.977,0.4923349]
[1772828143346,0.5107553,85.03,84.982,11.76719775]
[1772828144141,0.5107553,85.03,84.983,0.4923349]
[1772828144737,0.5107553,85.03,84.973,7.57610093]
[1772828144738,0.5107553,85.028,84.975,11.76808831]
[1772828144937,0.5107553,85.022,84.975,11.76808831]
[1772828145137,0.28432314,85.03,84.973,7.57610093]
[1772828145138,0.5107553,85.018,84.973,7.57610093]
[1772828145338,0.5107553,85.013,84.981,6.37373766]
[1772828145936,0.5107553,85.013,84.982,0.52056651]
[1772828147353,0.42648471,85.028,84.984,0.52056651]
[1772828147853,41.16242693,85.029,84.984,0.52056651]
[1772828149452,41.16242693,85.029,84.985,11.76678237]
[1772828149754,11.76069341,85.029,84.986,0.52056651]
[1772828150049,41.16242693,85.029,84.986,0.52056651]
[1772828152356,0.02011526,85.028,84.986,0.52056651]
[1772828152655,0.02011526,85.028,84.988,0.52056651]
[1772828152851,41.16242693,85.029,84.988,0.52056651]
[1772828153154,0.02011526,85.028,84.988,0.52056651]
[1772828153747,41.16242693,85.029,84.988,0.52056651]
[1772828154733,0.02142203,85.028,84.99,0.52056651]
[1772828156242,11.76069341,85.029,84.992,0.52056651]
[1772828156435,0.27991776,85.03,84.992,0.52056651]
[1772828156436,12.0404853,85.03,84.992,0.52056651]
[1772828156949,12.0404853,85.03,84.994,0.52056651]
[1772828160260,12.0404853,85.03,84.998,0.52056651]
[1772828160261,0.27991776,85.03,84.998,0.52056651]
[1772828160447,11.75792778,85.049,85.002,0.51801299]
[1772828161165,0.30584642,85.048,85.002,0.51801299]
[1772828162250,0.30744988,85.056,85.004,0.51310861]
[1772828162450,0.30823297,85.07,85.006,0.51310861]
[1772828162651,41.14210482,85.071,85.015,0.14216157]
[1772828162856,41.14210482,85.071,85.022,0.51310861]
[1772828163058,0.30823297,85.07,85.022,0.51310861]
[1772828163448,0.3090053,85.069,85.003,11.76429067]
[1772828163759,0.3090053,85.068,85.004,0.51310861]
[1772828164364,0.59409701,85.066,85.006,0.51310861]
[1772828164557,0.30977387,85.064,85.006,0.51310861]
[1772828164868,0.30977387,85.062,85.006,0.51310861]
[1772828166264,41.45458019,85.067,85.006,0.51310861]
[1772828166468,0.31129152,85.064,85.011,0.51310861]
[1772828169474,0.31276748,85.062,85.013,0.51310861]
[1772828173565,0.31164107,85.06,85.015,0.51310861]
[1772828175675,0.30997703,85.058,85.017,0.51310861]
[1772828176372,41.14790909,85.059,85.017,0.51310861]
[1772828176976,0.30915931,85.058,85.017,0.51310861]
[1772828179080,0.30755196,85.056,85.019,0.51310861]
[1772828179884,41.14887662,85.057,85.019,0.51310861]
[1772828181275,0.30598131,85.071,85.021,0.65527018]
[1772828181483,41.13871976,85.078,85.022,0.51310861]
[1772828181679,41.44392925,85.078,85.022,0.51310861]
[1772828181879,41.13871976,85.078,85.022,0.51310861]
[1772828182186,11.75345167,85.082,85.03,0.14216157]
[1772828182366,11.75345167,85.082,85.041,0.51310861]
[1772828182973,0.30444654,85.081,85.041,0.51310861]
[1772828183571,12.05733597,85.08,85.043,0.51310861]
[1772828184691,0.30294682,85.079,85.045,0.51310861]
[1772828184902,0.71100002,85.083,85.045,0.51310861]
[1772828185187,0.71100002,85.083,85.047,0.51310861]
[1772828185367,0.71100002,85.083,85.051,0.51310861]
[1772828185783,11.75336733,85.082,85.051,0.51310861]
[1772828185989,11.75198608,85.092,85.051,0.51310861]
[1772828186583,0.30148136,85.091,85.053,0.51310861]
[1772828186785,0.30148136,85.091,85.033,0.51310861]
[1772828186984,0.30148136,85.091,85.037,0.51310861]
[1772828187394,0.30076122,85.11,85.041,0.51310861]
[1772828188496,0.30004936,85.105,85.041,0.51310861]
[1772828188670,0.30004936,85.104,85.041,0.51310861]
[1772828188875,0.30004936,85.102,85.041,0.51310861]
[1772828191390,0.29865008,85.099,85.043,0.51310861]
[1772828193489,0.29594666,85.096,85.045,0.50803601]
[1772828196516,0.29399951,85.094,85.036,0.50803601]
[1772828196695,0.29399951,85.092,85.036,0.50803601]
[1772828198110,0.29336531,85.09,85.036,0.50803601]
[1772828199011,0.2927384,85.087,85.036,0.50803601]
[1772828200183,0.2927384,85.087,85.036,11.75967496]
[1772828200404,0.2927384,85.087,85.037,0.50803601]
[1772828201504,0.29090054,85.085,85.037,0.50803601]
[1772828201807,0.43306211,85.084,85.037,0.50803601]
[1772828201996,0.29090054,85.082,85.037,0.50803601]
[1772828202390,0.29090054,85.082,85.013,0.42648471]
[1772828202391,0.29030194,85.085,85.039,0.50803601]
[1772828204792,0.28912529,85.083,85.039,0.50803601]
[1772828207207,0.28797551,85.081,85.039,0.50803601]
[1772828208507,0.28797551,85.081,85.041,0.50803601]
[1772828209411,0.28685199,85.079,85.015,29.40650356]
[1772828209598,0.28685199,85.079,85.016,0.42648471]
[1772828210502,0.49951901,85.078,84.99,0.42648471]
[1772828210691,0.49951901,85.072,84.99,0.42648471]
[1772828211318,0.49951901,85.07,84.995,3.69383402]
[1772828211496,0.49951901,85.07,84.998,0.50803601]
[1772828211809,0.49951901,85.07,85.003,0.14216157]
[1772828212015,0.49951901,85.07,85.012,0.50803601]
[1772828212193,0.49951901,85.068,85.012,0.50803601]
[1772828212398,0.49951901,85.064,84.992,11.76581325]
[1772828212589,0.49951901,85.054,84.992,11.76581325]
[1772828212897,0.49951901,85.052,84.992,11.76581325]
[1772828213558,0.49951901,85.05,84.984,11.76692083]
[1772828213894,0.49951901,85.05,84.985,0.42648471]
[1772828214392,0.49951901,85.05,84.987,0.14216157]
[1772828214590,0.49951901,85.05,84.992,0.50803601]
[1772828215107,0.49951901,85.05,85.0,0.50803601]
[1772828215408,0.49951901,85.05,85.002,0.50803601]
[1772828216298,41.15274723,85.049,85.004,0.48476943]
[1772828216996,0.4859321,85.048,85.004,0.48476943]
[1772828218623,0.4859321,85.046,85.006,0.48476943]
[1772828220522,11.7584808,85.045,85.007,11.7637371]
[1772828220829,11.7584808,85.045,85.008,0.48476943]
[1772828221510,11.7584808,85.045,85.01,0.48476943]
[1772828221706,11.7584808,85.045,85.012,0.48476943]
[1772828222320,0.51666771,85.053,85.012,0.48476943]
[1772828222630,0.51666771,85.067,85.016,0.51050802]
[1772828223116,0.51666771,85.067,85.022,0.51050802]
[1772828223324,0.51666771,85.077,85.022,0.51050802]
[1772828224702,0.51666771,85.075,85.025,0.51050802]
[1772828224915,0.51666771,85.075,85.029,0.51050802]
[1772828225105,0.51666771,85.075,85.031,0.51050802]
[1772828227607,0.51666771,85.073,85.033,0.51050802]
[1772828227801,11.75447257,85.074,85.035,0.51050802]
[1772828228001,11.75447257,85.074,85.038,0.14216157]
[1772828228203,11.75447257,85.074,85.041,0.51050802]
[1772828229112,0.51666771,85.073,85.041,0.51050802]
[1772828229913,11.75474891,85.072,85.043,0.51050802]
[1772828230923,12.27141662,85.072,85.043,0.51050802]
[1772828231706,0.51666771,85.092,85.044,0.14216157]
[1772828231904,0.51666771,85.092,85.05,0.14216157]
[1772828231905,11.75281479,85.086,85.05,0.14216157]
[1772828232112,11.75281479,85.086,85.051,0.51050802]
[1772828232424,0.51666771,85.085,85.051,0.51050802]
[1772828233832,11.75309106,85.084,85.052,11.75751305]
[1772828234132,0.51666771,85.083,85.053,0.51050802]
[1772828235137,0.51666771,85.098,85.055,0.51050802]
[1772828235427,11.7510194,85.099,85.061,0.51050802]
[1772828235832,29.37644049,85.103,85.063,0.51050802]
[1772828236508,0.51666771,85.102,85.063,0.51050802]
[1772828236713,0.51666771,85.102,85.06,0.51050802]
[1772828236914,0.51666771,85.102,85.057,0.42648471]
[1772828236915,0.51666771,85.102,85.062,0.51050802]
[1772828238416,0.51666771,85.1,85.022,11.76166168]
[1772828238625,0.51666771,85.1,85.025,3.69383402]
[1772828239032,0.51666771,85.098,85.026,0.42648471]
[1772828239336,0.28432314,85.1,85.026,0.42648471]
[1772828239337,0.51666771,85.092,85.026,0.42648471]
[1772828239533,0.51666771,85.092,85.022,41.16581589]
[1772828239940,0.51666771,85.092,85.023,0.42648471]
[1772828240436,0.51666771,85.09,85.027,0.26948257]
[1772828242634,0.51666771,85.088,85.03,0.26868665]
[1772828245347,0.51666771,85.086,85.019,0.26752674]
[1772828245549,0.51666771,85.084,85.019,0.26752674]
[1772828245752,0.51666771,85.082,85.019,0.26752674]
[1772828245926,0.51666771,85.082,85.022,0.26752674]
[1772828247362,0.51666771,85.08,85.024,0.42648471]
[1772828247558,0.51666771,85.07,84.982,11.76719775]
[1772828247730,0.51666771,85.066,84.983,29.41746041]
[1772828247929,0.51666771,85.052,84.984,0.42648471]
[1772828248632,0.51666771,85.052,84.983,29.41746041]
[1772828249161,0.51666771,85.052,84.984,0.42648471]
[1772828249364,0.51666771,85.05,84.988,3.69383402]
[1772828249537,0.51666771,85.05,84.989,0.42648471]
[1772828251085,11.75715014,85.055,84.991,0.14216157]
[1772828251235,11.75715014,85.055,84.993,0.14216157]
[1772828251635,29.39102513,85.06,84.998,3.69383402]
[1772828251853,29.90709526,85.06,84.999,0.42648471]
[1772828252454,0.51607013,85.059,84.999,0.42648471]
[1772828252856,0.51607013,85.059,85.003,0.42648471]
[1772828253436,0.51607013,85.059,84.996,0.42648471]
[1772828253659,0.51607013,85.057,84.998,0.42648471]
[1772828253957,0.51607013,85.057,84.997,41.17792392]
[1772828254160,0.51607013,85.057,84.998,0.42648471]
[1772828254338,0.51607013,85.057,84.997,41.17792392]
[1772828254657,0.51607013,85.057,84.998,0.42648471]
[1772828255759,0.51607013,85.055,85.002,3.69383402]
[1772828256856,0.51607013,85.055,85.003,0.42648471]
[1772828257964,0.51607013,85.053,85.005,0.42648471]
[1772828258576,0.51607013,85.053,85.004,41.17453295]
[1772828259740,0.51607013,85.053,85.004,11.76415227]
[1772828260051,0.51607013,85.051,84.998,0.42648471]
[1772828260250,0.51607013,85.051,84.982,11.76719775]
[1772828260456,0.51607013,85.051,84.983,0.42648471]
[1772828262140,0.51607013,85.049,84.985,0.42648471]
[1772828262838,0.51607013,85.049,84.981,110.57373766]
[1772828262839,0.51607013,85.047,84.981,110.57373766]
[1772828263045,0.51607013,85.047,84.982,0.14216157]
[1772828263252,0.51607013,85.043,84.982,0.28432314]
[1772828263648,0.51607013,85.043,84.981,6.37373766]
[1772828263842,0.51607013,85.043,84.981,18.14098673]
[1772828264169,0.51607013,85.041,84.982,0.28432314]
[1772828265059,0.51607013,85.037,84.981,6.37373766]
[1772828265267,0.42648471,85.036,84.981,6.37373766]
[1772828265555,0.51607013,85.023,84.981,6.37373766]
[1772828266542,0.51607013,85.023,84.981,18.14097108]
[1772828266769,0.51607013,85.023,84.982,0.28432314]
[1772828267143,0.51607013,85.021,84.983,11.76705929]
[1772828267360,0.51607013,85.021,84.984,0.42648471]
[1772828267562,11.76105471,85.027,84.984,0.42648471]
[1772828267868,0.51607013,85.026,84.984,0.42648471]
[1772828269549,11.76105471,85.027,84.986,0.42648471]
[1772828270558,0.51607013,85.027,84.988,0.42648471]
[1772828272649,0.51607013,85.025,84.99,0.42648471]
[1772828273268,0.0585964,85.038,84.99,0.28432314]
[1772828273269,11.76049531,85.031,84.99,0.28432314]
[1772828273581,0.51607013,85.03,84.99,0.28432314]
[1772828274271,0.0585964,85.038,84.993,0.28432314]
[1772828274754,0.0585964,85.038,84.995,0.28432314]